bitfinex/quotes_SOLUSD_20220129
["timestamp","ask_amount","ask_price","bid_price","bid_amount"]
[1643482208304,6.0,95.108,95.011,0.25]
[1643482208908,6.0,95.108,95.013,1.42594673]
[1643482209204,6.0,95.108,95.014,1.42594673]
[1643482209403,0.25,95.107,95.015,0.25]
[1643482209602,6.0,95.108,95.015,0.25]
[1643482209805,48.0068,95.118,95.025,106.2]
[1643482210002,42.89523988,95.13,95.035,6.0]
[1643482210208,42.89523988,95.13,95.036,106.2]
[1643482210406,42.89523988,95.13,95.05,12.68]
[1643482210706,42.89523988,95.13,95.051,106.2]
[1643482210904,42.89523988,95.13,95.051,106.45]
[1643482213409,42.89523988,95.13,95.03,1.42594673]
[1643482213607,6.0,95.12,95.026,441.06145178]
[1643482213809,0.25,95.119,95.026,441.06145178]
[1643482214006,6.0,95.113,95.026,441.06145178]
[1643482214408,6.0,95.109,95.026,441.06145178]
[1643482214611,6.0,95.108,95.026,441.06145178]
[1643482214812,6.25,95.108,95.026,441.06145178]
[1643482215008,40.20796844,95.101,95.026,441.06145178]
[1643482215209,6.0,95.098,94.984,1.42594673]
[1643482215409,6.0,95.091,94.987,0.25]
[1643482215610,6.0,95.09,94.987,0.25]
[1643482215813,6.25,95.09,94.987,0.25]
[1643482216011,6.0,95.087,94.987,0.25]
[1643482216410,6.0,95.079,94.976,1.42594673]
[1643482216611,6.0,95.076,94.977,0.25]
[1643482216812,0.25,95.075,94.977,0.25]
[1643482217414,33.01433828,95.067,94.977,0.25]
[1643482217614,33.01433828,95.067,94.984,6.0]
[1643482217816,0.25,95.066,94.985,0.25]
[1643482218021,0.25,95.066,94.984,6.0]
[1643482218218,33.01433828,95.067,94.974,6.0]
[1643482218422,2.95669142,95.088,94.985,2.37061527]
[1643482218623,23.9898,95.099,94.995,6.0]
[1643482219024,23.9898,95.099,94.997,106.2]
[1643482219424,33.46353878,95.098,94.998,0.25]
[1643482219821,102.2393,95.1,95.0,15.783]
[1643482219822,79.4525,95.1,95.0,15.783]
[1643482220023,1.4430559,95.134,95.01,6.0]
[1643482220225,1.4430559,95.135,95.011,106.2]
[1643482220423,1.4430559,95.139,95.02,12.68]
[1643482220624,1.4430559,95.146,95.03,6.0]
[1643482220824,42.27141295,95.145,95.031,0.25]
[1643482221045,1.4430559,95.148,95.04,15.777]
[1643482221243,1.4430559,95.177,95.05,12.68]
[1643482221442,1.4430559,95.177,95.051,106.2]
[1643482221642,1.4430559,95.186,95.051,112.45]
[1643482221842,1.4430559,95.186,95.061,106.2]
[1643482222042,42.94943903,95.185,95.071,106.2]
[1643482222243,42.94943903,95.185,95.072,0.25]
[1643482222443,1.4430559,95.178,95.072,0.25]
[1643482223343,1.4430559,95.176,95.072,0.25]
[1643482223545,0.25,95.177,95.072,0.25]
[1643482224845,0.25,95.177,95.071,0.25]
[1643482225046,6.0,95.169,95.071,0.25]
[1643482225249,0.25,95.168,95.071,0.25]
[1643482226447,0.25,95.173,95.071,0.25]
[1643482226646,0.25,95.173,95.07,0.25]
[1643482226647,6.0,95.165,95.07,0.25]
[1643482226846,0.25,95.164,95.07,0.25]
[1643482227045,6.0,95.161,95.07,0.25]
[1643482227248,0.25,95.16,95.07,0.25]
[1643482227846,6.25,95.16,95.069,502.61033337]
[1643482228048,6.0,95.159,95.069,502.61033337]
[1643482228249,0.25,95.158,95.069,502.61033337]
[1643482228447,6.0,95.15,95.069,502.61033337]
[1643482228655,46.67008012,95.149,95.062,6.0]
[1643482228853,46.92008012,95.149,95.054,112.2]
[1643482229253,46.92008012,95.149,95.054,6.0]
[1643482229453,46.92008012,95.149,95.042,18.59057958]
[1643482229656,6.0,95.139,95.018,1.42594673]
[1643482229859,0.25,95.138,95.034,6.0]
[1643482230054,6.25,95.138,95.033,6.0]
[1643482230261,6.25,95.138,95.034,0.25]
[1643482231556,6.25,95.138,95.034,6.25]
[1643482231758,6.25,95.138,95.035,0.25]
[1643482231958,6.0,95.135,95.035,0.25]
[1643482232357,6.0,95.135,95.024,106.2]
[1643482232358,6.0,95.128,95.024,106.2]
[1643482232556,0.25,95.134,95.024,106.2]
[1643482232757,0.25,95.134,95.003,18.59057958]
[1643482232758,0.25,95.134,95.008,1.42594673]
[1643482232959,6.0,95.13,95.008,1.42594673]
[1643482233159,1.4430559,95.121,94.989,1.42594673]
[1643482233357,41.10488947,95.12,94.991,1.42594673]
[1643482233557,6.0,95.11,94.991,1.42594673]
[1643482233767,0.25,95.109,94.99,1.42594673]
[1643482233959,0.25,95.109,94.988,1.42594673]
[1643482234360,0.25,95.109,95.014,612.66447437]
[1643482234760,0.25,95.109,95.014,106.2]
[1643482235059,0.25,95.119,95.014,106.2]
[1643482235258,0.25,95.119,95.015,0.25]
[1643482235662,0.25,95.119,95.016,2.36714006]
[1643482235860,0.25,95.119,95.017,0.25]
[1643482236062,0.25,95.119,95.027,106.2]
[1643482236262,0.25,95.119,95.028,0.25]
[1643482240362,0.25,95.119,95.028,2.61714006]
[1643482240964,40.85488947,95.12,95.028,0.25]
[1643482241764,0.25,95.119,95.028,0.25]
[1643482241963,40.85488947,95.12,95.028,0.25]
[1643482242164,0.25,95.119,95.028,0.25]
[1643482243163,40.85488947,95.12,95.028,0.25]
[1643482244565,0.25,95.119,95.028,0.25]
[1643482247868,0.25,95.119,95.018,6.0]
[1643482248269,0.25,95.119,95.019,0.25]
[1643482248468,6.0,95.11,95.019,0.25]
[1643482248869,0.25,95.109,95.019,0.25]
[1643482249367,0.25,95.109,95.014,0.25]
[1643482252380,0.25,95.109,95.005,0.25]
[1643482252574,6.0,95.103,95.005,0.25]
[1643482252771,0.25,95.102,95.005,0.25]
[1643482252972,6.25,95.102,95.005,0.25]
[1643482253172,6.0,95.101,95.005,0.25]
[1643482253374,1.4430559,95.11,95.005,0.25]
[1643482253573,1.4430559,95.117,95.014,6.0]
[1643482253772,1.4430559,95.117,95.018,0.31754095]
[1643482253973,1.4430559,95.157,95.037,1.42594673]
[1643482254182,1.4430559,95.157,95.05,12.68]
[1643482254373,1.4430559,95.177,95.06,1.42594673]
[1643482254574,1.4430559,95.182,95.071,106.2]
[1643482254801,1.4430559,95.185,95.09,15.769]
[1643482254977,1.4430559,95.185,95.091,106.2]
[1643482255178,149.4086,95.22,95.1,6.0]
[1643482255179,1.4430559,95.193,95.1,6.0]
[1643482255376,152.30455524,95.22,95.091,106.45]
[1643482255377,34.76146029,95.192,95.101,6.25]
[1643482255576,34.76146029,95.192,95.101,6.0]
[1643482255776,34.76146029,95.192,95.102,0.25]
[1643482255973,34.76146029,95.192,95.102,106.45]
[1643482256177,34.76146029,95.192,95.102,0.25]
[1643482256581,6.0,95.182,95.102,0.25]
[1643482256780,6.0,95.182,95.095,0.25]
[1643482257177,36.20451619,95.192,95.092,0.25]
[1643482257678,1.4430559,95.181,95.092,0.25]
[1643482257978,48.598,95.18,95.092,0.25]
[1643482258177,6.0,95.171,95.092,0.25]
[1643482258377,6.25,95.17,95.074,0.25]
[1643482258580,6.25,95.17,95.071,6.0]
[1643482258979,6.25,95.17,95.077,6.0]
[1643482259177,42.99789266,95.163,95.067,18.4808018]
[1643482259382,0.25,95.162,95.056,17.36308054]
[1643482259577,0.25,95.162,95.055,106.2]
[1643482259578,22.7906,95.162,95.055,106.2]
[1643482259777,22.7906,95.162,95.046,18.4808018]
[1643482260580,22.7906,95.162,95.057,106.2]
[1643482260778,22.5406,95.162,95.058,0.25]
[1643482260979,22.5406,95.162,95.067,6.0]
[1643482261380,6.0,95.152,95.068,6.25]
[1643482261579,6.0,95.152,95.068,0.25]
[1643482261778,0.25,95.151,95.068,0.25]
[1643482262983,0.25,95.151,95.041,106.45]
[1643482263381,0.25,95.151,95.051,6.0]
[1643482263585,0.25,95.151,95.053,6.0]
[1643482263783,0.25,95.151,95.054,0.25]
[1643482263982,15.787,95.15,95.041,1.42594673]
[1643482264182,15.787,95.15,95.022,18.4808018]
[1643482264183,15.787,95.15,95.036,1.42594673]
[1643482264381,6.0,95.14,95.031,1.42594673]
[1643482264687,6.0,95.14,95.034,1.42594673]
[1643482264885,24.3595,95.149,95.041,18.4808018]
[1643482265181,24.3595,95.149,95.041,35.80777123]
[1643482265381,0.25,95.148,95.042,106.2]
[1643482265584,0.25,95.148,95.042,124.6808018]
[1643482265783,0.25,95.148,95.043,0.25]
[1643482266480,22.9038,95.148,95.043,0.25]
[1643482267481,6.0,95.138,95.043,0.25]
[1643482267885,0.25,95.137,95.043,0.25]
[1643482268685,22.6538,95.148,95.044,17.32696943]
[1643482268884,22.6538,95.148,95.052,6.0]
[1643482269084,22.6538,95.148,95.054,6.0]
[1643482269283,22.6538,95.148,95.055,106.45]
[1643482269682,22.6538,95.148,95.065,6.0]
[1643482269886,22.6538,95.148,95.066,0.25]
[1643482270082,22.6538,95.148,95.066,6.25]
[1643482270684,22.6538,95.148,95.067,106.2]
[1643482270887,22.6538,95.148,95.068,0.25]
[1643482271088,1.4430559,95.174,95.068,0.25]
[1643482271285,1.4430559,95.175,95.068,0.25]
[1643482271484,46.7114,95.178,95.078,106.2]
[1643482271485,1.4430559,95.177,95.078,106.2]
[1643482271684,46.7114,95.178,95.078,106.2]
[1643482271885,1.4430559,95.185,95.089,106.2]
[1643482272086,1.4430559,95.206,95.099,6.0]
[1643482272287,1.4430559,95.216,95.1,119.13]
[1643482272493,1.4430559,95.221,95.1,125.13]
[1643482272687,1.4430559,95.244,95.115,1.42594673]
[1643482272885,43.78808323,95.22,95.115,1.42594673]
[1643482273188,43.78808323,95.22,95.125,6.0]
[1643482273384,43.78808323,95.22,95.126,0.25]
[1643482273988,43.78808323,95.22,95.126,106.45]
[1643482274190,43.78808323,95.22,95.126,106.2]
[1643482274391,43.78808323,95.22,95.136,6.0]
[1643482274590,1.4430559,95.245,95.141,106.2]
[1643482275000,23.9776,95.255,95.151,6.0]
[1643482275001,1.4430559,95.255,95.151,6.0]
[1643482275199,22.9984,95.265,95.152,106.2]
[1643482275599,45.87739574,95.264,95.153,0.25]
[1643482275798,45.87739574,95.264,95.131,0.25]
[1643482275998,6.0,95.254,95.14,6.0]
[1643482276199,6.0,95.254,95.141,106.2]
[1643482276498,6.0,95.254,95.141,106.45]
[1643482276698,6.0,95.254,95.152,106.2]
[1643482276901,6.0,95.254,95.153,0.25]
[1643482277100,45.87739574,95.264,95.153,0.25]
[1643482277321,45.87739574,95.264,95.162,6.0]
[1643482277527,45.87739574,95.264,95.163,106.2]
[1643482277724,45.87739574,95.264,95.163,106.45]
[1643482277924,0.25,95.263,95.163,106.45]
[1643482278525,0.25,95.263,95.162,6.0]
[1643482278824,0.25,95.263,95.16,6.0]
[1643482279224,45.87739574,95.264,95.16,6.0]
[1643482279825,45.87739574,95.264,95.161,0.25]
[1643482280030,45.87739574,95.264,95.163,6.0]
[1643482280427,45.87739574,95.264,95.164,0.25]
[1643482280626,0.25,95.263,95.164,0.25]
[1643482281629,0.25,95.263,95.141,0.25]
[1643482282128,0.25,95.263,95.142,2.3640664]
[1643482282332,0.25,95.263,95.143,0.25]
[1643482282531,0.25,95.263,95.153,106.2]
[1643482282932,0.25,95.263,95.163,6.0]
[1643482283130,0.25,95.263,95.163,112.2]
[1643482283332,0.25,95.263,95.164,0.25]
[1643482287134,6.0,95.254,95.164,0.25]
[1643482287335,0.2972729,95.253,95.144,2.3640664]
[1643482287534,53.0187729,95.253,95.111,106.2]
[1643482287745,24.66856116,95.252,95.111,106.2]
[1643482287935,24.66856116,95.252,95.112,18.4808018]
[1643482288136,6.0,95.242,95.112,18.4808018]
[1643482288336,24.0488,95.241,95.113,106.2]
[1643482288537,24.0488,95.241,95.123,6.0]
[1643482288738,24.0488,95.241,95.124,106.2]
[1643482289844,6.0,95.231,95.134,6.0]
[1643482290042,37.66890559,95.23,95.135,106.2]
[1643482290245,37.91890559,95.23,95.135,106.45]
[1643482290442,23.131,95.229,95.135,106.45]
[1643482292142,24.66856116,95.252,95.136,2.3640664]
[1643482292343,0.15936116,95.252,95.146,106.2]
[1643482292542,0.15936116,95.252,95.15,12.68]
[1643482292943,0.15936116,95.252,95.16,6.0]
[1643482293143,0.15936116,95.252,95.17,12.68]
[1643482293344,0.15936116,95.252,95.171,106.45]
[1643482293544,0.15936116,95.252,95.181,6.0]
[1643482293745,0.15936116,95.252,95.19,12.68]
[1643482294047,0.15936116,95.252,95.241,51.963062]
[1643482294646,5.93370343,95.25,95.241,51.963062]
[1643482295046,2.91064072,95.25,95.241,51.963062]
[1643482295252,0.15936116,95.252,95.241,51.963062]
[1643482295847,0.15936116,95.252,95.242,106.2]
[1643482296251,0.15936116,95.252,95.125,2.84983633]
[1643482296452,0.15936116,95.252,95.146,1.42594673]
[1643482296648,2.95669142,95.251,95.159,106.2]
[1643482296848,0.15936116,95.252,95.159,106.2]
[1643482297852,0.15936116,95.252,95.16,0.25]
[1643482298453,0.15936116,95.252,95.17,106.2]
[1643482298748,0.15936116,95.252,95.171,0.25]
[1643482301649,0.15936116,95.252,95.169,6.0]
[1643482301650,0.15936116,95.252,95.17,6.25]
[1643482301850,0.15936116,95.252,95.17,0.25]
[1643482302150,0.15936116,95.252,95.173,63.71]
[1643482302350,0.15936116,95.252,95.18,12.68]
[1643482302549,0.15936116,95.252,95.201,106.2]
[1643482302749,0.15936116,95.252,95.218,1.42594673]
[1643482302952,0.15936116,95.252,95.22,14.10594673]
[1643482303148,0.15936116,95.252,95.229,106.2]
[1643482303348,0.15936116,95.252,95.231,106.2]
[1643482303750,0.15936116,95.252,95.232,0.25]
[1643482305555,0.15936116,95.252,95.242,106.2]
[1643482305751,0.15936116,95.252,95.243,0.25]
[1643482310358,0.31872232,95.252,95.243,0.25]
[1643482313087,0.47273796,95.291,95.243,0.25]
[1643482317490,0.47273796,95.291,95.24,0.12155925]
[1643482317689,0.47273796,95.291,95.22,12.68]
[1643482317890,0.47273796,95.291,95.211,106.2]
[1643482319495,0.47273796,95.291,95.211,105.7]
[1643482319691,0.47273796,95.291,95.185,1.42594673]
[1643482319898,0.47273796,95.291,95.181,1.42594673]
[1643482320192,6.0,95.285,95.181,106.2]
[1643482320391,6.0,95.28,95.181,106.2]
[1643482320593,34.2847577,95.278,95.181,106.2]
[1643482321192,0.25,95.277,95.181,106.2]
[1643482321594,0.25,95.277,95.182,0.25]
[1643482322192,0.25,95.277,95.178,1.42594673]
[1643482322597,34.2847577,95.278,95.188,6.0]
[1643482322795,34.2847577,95.278,95.189,0.25]
[1643482322996,34.2847577,95.278,95.181,112.2]
[1643482322997,34.2847577,95.278,95.185,6.0]
[1643482323398,0.25,95.277,95.185,6.0]
[1643482323611,0.25,95.277,95.18,1.42594673]
[1643482323796,0.25,95.277,95.177,1.42594673]
[1643482323995,0.25,95.277,95.187,6.0]
[1643482324296,0.25,95.277,95.188,0.25]
[1643482324495,0.25,95.277,95.188,6.25]
[1643482325497,0.25,95.277,95.188,0.25]
[1643482325697,34.2847577,95.278,95.182,106.45]
[1643482325900,34.2847577,95.278,95.185,106.2]
[1643482326196,34.2847577,95.278,95.186,1.42594673]
[1643482326397,34.2847577,95.278,95.186,0.25]
[1643482326997,34.2847577,95.278,95.185,106.2]
[1643482327407,6.0,95.268,95.185,106.2]
[1643482327599,46.4989,95.267,95.185,106.2]
[1643482327798,46.7489,95.267,95.185,106.2]
[1643482327999,6.0,95.257,95.185,106.2]
[1643482328401,0.25,95.256,95.185,106.2]
[1643482329900,0.25,95.256,95.148,2.36385538]
[1643482329901,0.25,95.256,95.156,1.42594673]
[1643482330101,0.25,95.256,95.153,1.42594673]
[1643482330904,0.25,95.256,95.133,106.2]
[1643482330905,0.25,95.256,95.155,1.42594673]
[1643482331200,0.25,95.256,95.157,1.42594673]
[1643482331404,0.25,95.256,95.162,1.42594673]
[1643482331602,0.25,95.256,95.165,1.42594673]
[1643482331804,0.25,95.256,95.166,0.25]
[1643482332704,46.4989,95.267,95.175,1.42594673]
[1643482332903,46.4989,95.267,95.18,12.68]
[1643482333103,46.4989,95.267,95.181,106.2]
[1643482333306,46.4989,95.267,95.181,106.45]
[1643482333510,46.4989,95.267,95.181,108.81385538]
[1643482333704,46.4989,95.267,95.182,2.36385538]
[1643482333907,46.4989,95.267,95.183,0.25]
[1643482335007,46.4989,95.267,95.182,0.25]
[1643482343923,46.4989,95.267,95.178,1.42594673]
[1643482344122,0.25,95.266,95.178,1.42594673]
[1643482344326,6.0,95.257,95.163,1.42594673]
[1643482344523,6.0,95.257,95.173,6.0]
[1643482344723,6.0,95.257,95.161,6.0]
[1643482344724,0.25,95.256,95.161,6.0]
[1643482344944,0.25,95.256,95.172,6.0]
[1643482345143,0.25,95.256,95.154,1.42594673]
[1643482345348,0.25,95.256,95.164,6.0]
[1643482345547,0.25,95.256,95.165,6.0]
[1643482345746,0.25,95.256,95.164,6.0]
[1643482346546,0.25,95.256,95.163,6.0]
[1643482346948,6.25,95.256,95.163,6.0]
[1643482347346,6.25,95.256,95.162,6.0]
[1643482347548,22.5689,95.255,95.15,1.42594673]
[1643482347748,0.25,95.254,95.156,1.42594673]
[1643482347948,42.37151523,95.244,95.146,1.42594673]
[1643482348149,6.0,95.234,95.143,1.42594673]
[1643482348348,23.7764,95.233,95.142,1.42594673]
[1643482348548,107.4822,95.233,95.142,1.42594673]
[1643482348952,15.771,95.23,95.14,1.42594673]
[1643482349149,24.2084,95.229,95.14,1.42594673]
[1643482349348,6.0,95.22,95.142,1.42594673]
[1643482349550,6.0,95.219,95.142,1.42594673]
[1643482349851,24.4584,95.229,95.141,1.42594673]
[1643482350049,0.25,95.218,95.142,1.42594673]
[1643482350553,0.25,95.218,95.134,1.42594673]
[1643482350752,0.25,95.218,95.131,1.42594673]
[1643482350953,0.25,95.218,95.129,1.42594673]
[1643482351353,0.25,95.218,95.13,0.25]
[1643482352254,0.25,95.218,95.129,0.25]
[1643482352654,0.25,95.218,95.128,1.42594673]
[1643482352854,0.25,95.218,95.074,4.39681625]
[1643482352855,34.31770604,95.208,95.122,1.42594673]
[1643482353056,34.31770604,95.208,95.074,4.39681625]
[1643482353057,6.0,95.198,95.119,1.42594673]
[1643482353258,0.25,95.197,95.103,1.42594673]
[1643482353455,24.0793,95.197,95.095,1.42594673]
[1643482353655,15.78,95.18,95.081,1.42594673]
[1643482353956,33.6245312,95.179,95.081,1.42594673]
[1643482354159,6.0,95.17,95.09,106.2]
[1643482354356,23.4431,95.178,95.088,1.42594673]
[1643482354555,23.4431,95.178,95.089,504.49736613]
[1643482354757,6.0,95.168,95.088,1.42594673]
[1643482354961,6.0,95.168,95.086,1.42594673]
[1643482355158,6.0,95.168,95.085,1.42594673]
[1643482355358,0.25,95.167,95.085,1.42594673]
[1643482355760,0.25,95.167,95.087,1.42594673]
[1643482356158,0.25,95.167,95.084,1.42594673]
[1643482356360,0.25,95.167,95.082,1.42594673]
[1643482356559,0.25,95.167,95.07,1.42594673]
[1643482356763,0.25,95.167,95.071,0.25]
[1643482357362,0.25,95.167,95.07,1.42594673]
[1643482357564,0.25,95.167,95.069,1.42594673]
[1643482357762,0.25,95.167,95.036,15.4973018]
[1643482357763,0.25,95.167,95.061,1.42594673]
[1643482357964,22.8979,95.167,95.055,1.42594673]
[1643482358161,6.0,95.16,95.053,1.42594673]
[1643482358362,6.0,95.157,95.053,1.42594673]
[1643482358561,18.37,95.157,95.052,1.42594673]
[1643482358762,46.4334,95.156,95.052,1.42594673]
[1643482359162,46.47016059,95.145,95.05,1.42594673]
[1643482359369,0.25,95.144,95.049,1.42594673]
[1643482359565,6.0,95.135,95.048,6.0]
[1643482359765,6.0,95.135,95.049,106.45]
[1643482359965,6.0,95.134,95.05,2.36385538]
[1643482360364,6.0,95.134,95.051,19.40174624]
[1643482360567,6.0,95.134,95.051,19.15174624]
[1643482360768,6.0,95.134,95.052,106.2]
[1643482361172,0.25,95.133,95.052,125.35174624]
[1643482362172,0.25,95.133,95.038,1.42594673]
[1643482362370,0.25,95.133,94.945,21.97187644]
[1643482362371,0.25,95.133,95.03,1.42594673]
[1643482362573,6.0,95.13,95.022,1.42594673]
[1643482362872,0.25,95.129,95.019,1.42594673]
[1643482363071,6.0,95.124,95.019,1.42594673]
[1643482363372,0.25,95.123,95.016,1.42594673]
[1643482363596,0.25,95.123,95.02,1.42594673]
[1643482363798,0.25,95.128,95.021,1.42594673]
[1643482363999,6.0,95.119,95.021,3.78980211]
[1643482364196,0.25,95.128,95.021,3.78980211]
[1643482364197,0.25,95.128,95.021,23.2419928]
[1643482364397,6.0,95.119,95.022,0.25]
[1643482364612,6.0,95.119,95.023,106.2]
[1643482364799,23.7804,95.118,95.024,0.25]
[1643482365199,45.86218941,95.107,95.024,0.25]
[1643482365398,0.25,95.106,95.024,0.25]
[1643482366800,0.25,95.106,95.025,19.4343518]
[1643482367003,45.86218941,95.107,95.026,0.25]
[1643482367400,45.86218941,95.107,95.027,106.2]
[1643482367800,45.86218941,95.107,95.028,0.25]
[1643482368199,45.86218941,95.107,95.029,19.4343518]
[1643482368404,45.86218941,95.107,95.03,0.25]
[1643482368803,45.86218941,95.107,95.03,19.6843518]
[1643482369001,45.86218941,95.107,95.031,106.2]
[1643482369404,45.86218941,95.107,95.032,0.25]
[1643482370703,23.8707,95.117,95.033,19.4343518]
[1643482370903,22.6479,95.167,95.034,0.25]
[1643482371103,6.0,95.157,95.043,6.0]
[1643482371307,6.0,95.157,95.047,1.42594673]
[1643482371504,6.0,95.156,95.057,6.0]
[1643482371703,42.69215962,95.155,95.058,106.2]
[1643482371904,42.69215962,95.155,95.058,106.45]
[1643482372103,6.0,95.145,95.06,12.68]
[1643482372305,6.0,95.145,95.061,0.25]
[1643482372507,42.69215962,95.155,95.07,6.0]
[1643482372804,49.4905,95.192,95.071,0.25]
[1643482373005,23.358,95.225,95.075,1.42594673]
[1643482373204,23.358,95.225,95.09,12.68]
[1643482373405,6.0,95.198,95.1,12.68]
[1643482373604,45.45548718,95.197,95.111,106.2]
[1643482373804,45.45548718,95.197,95.112,0.25]
[1643482374204,0.25,95.196,95.112,0.25]
[1643482375410,1.4430559,95.266,95.112,0.25]
[1643482375606,49.202,95.244,95.121,6.0]
[1643482375807,49.202,95.244,95.122,0.25]
[1643482376107,49.202,95.244,95.134,1.42594673]
[1643482376307,38.51389824,95.243,95.14,12.68]
[1643482376805,0.25,95.242,95.13,6.0]
[1643482377005,6.0,95.233,95.131,0.25]
[1643482377208,38.51389824,95.243,95.131,0.25]
[1643482377411,38.51389824,95.243,95.135,1.42594673]
[1643482377608,38.51389824,95.243,95.15,12.68]
[1643482377812,38.51389824,95.243,95.151,106.45]
[1643482378008,38.51389824,95.243,95.161,112.2]
[1643482378210,38.51389824,95.243,95.151,0.25]
[1643482378409,0.25,95.242,95.151,0.25]
[1643482378609,6.0,95.233,95.151,0.25]
[1643482378809,24.1941,95.232,95.151,0.25]
[1643482379012,6.0,95.232,95.151,0.25]
[1643482379412,24.386,95.242,95.15,6.0]
[1643482379612,24.386,95.242,95.154,106.2]
[1643482379813,24.386,95.242,95.155,0.25]
[1643482380817,0.25,95.241,95.155,0.25]
[1643482381017,0.25,95.241,95.15,112.2]
[1643482381217,0.25,95.241,95.151,0.25]
[1643482381617,24.386,95.242,95.151,0.25]
[1643482383059,24.386,95.242,95.151,6.25]
[1643482383259,24.386,95.242,95.16,6.0]
[1643482383657,24.386,95.242,95.161,112.45]
[1643482383862,24.386,95.242,95.161,106.45]
[1643482386062,24.6919,95.268,95.171,6.0]
[1643482386368,12.68,95.32,95.172,0.25]
[1643482386564,152.0291,95.319,95.18,6.0]
[1643482386760,152.0291,95.319,95.19,12.68]
[1643482386960,40.20282356,95.29,95.191,106.2]
[1643482387160,40.20282356,95.29,95.2,6.0]
[1643482387362,40.20282356,95.29,95.202,106.2]
[1643482387363,24.1201,95.289,95.202,106.2]
[1643482387760,24.1201,95.289,95.203,0.25]
[1643482388160,6.0,95.279,95.202,106.2]
[1643482388364,6.25,95.278,95.202,106.2]
[1643482388761,6.25,95.278,95.18,12.68]
[1643482388960,6.25,95.278,95.181,106.2]
[1643482389362,6.0,95.278,95.182,0.25]
[1643482389563,6.0,95.278,95.192,106.2]
[1643482389764,6.0,95.278,95.2,12.68]
[1643482389963,6.0,95.278,95.202,6.0]
[1643482390163,23.1077,95.277,95.203,106.2]
[1643482390365,23.1077,95.277,95.204,0.25]
[1643482391766,0.25,95.276,95.204,0.25]
[1643482391969,0.25,95.276,95.2,12.68]
[1643482392168,0.25,95.276,95.19,6.0]
[1643482392368,0.25,95.276,95.19,106.2]
[1643482393369,23.1077,95.277,95.191,0.25]
[1643482396175,23.1077,95.277,95.191,19.6843518]
[1643482396373,23.1077,95.277,95.2,6.0]
[1643482396571,23.1077,95.277,95.203,106.2]
[1643482396773,23.1077,95.277,95.204,0.25]
[1643482396972,24.2213,95.288,95.204,0.25]
[1643482397572,24.2213,95.288,95.21,12.68]
[1643482397773,24.2213,95.288,95.211,106.45]
[1643482399674,24.9092,95.287,95.211,106.45]
[1643482399975,40.20282356,95.29,95.211,106.45]
[1643482400175,40.20282356,95.29,95.211,106.2]
[1643482400575,6.0,95.28,95.211,106.2]
[1643482401382,6.0,95.28,95.212,0.25]
[1643482401679,23.5879,95.289,95.212,0.25]
[1643482401878,0.25,95.279,95.212,0.25]
[1643482402077,23.5879,95.289,95.212,0.25]